bitfinex/quotes_ETHUSD_20241106
["timestamp","ask_amount","ask_price","bid_price","bid_amount"]
[1730864617620,0.01,2582.6,2582.2,3.87261]
[1730864617789,0.55,2582.7,2582.2,3.87261]
[1730864617972,0.56,2582.7,2582.2,3.87261]
[1730864618422,5.1430991,2582.6,2582.5,3.87217]
[1730864618715,3.7862,2582.9,2582.7,3.87191]
[1730864618716,0.80655123,2582.9,2582.7,3.87191]
[1730864618914,0.80655123,2583.2,2582.8,4.70116]
[1730864619119,0.80655123,2583.4,2583.3,3.87101]
[1730864619422,0.3597676,2583.4,2583.3,3.87101]
[1730864619589,1.16631883,2583.4,2583.3,3.87101]
[1730864619793,2.14296217,2583.4,2583.3,3.87101]
[1730864620179,5.14296217,2583.4,2583.3,3.87101]
[1730864621115,3.7762,2583.3,2581.8,0.8294]
[1730864621328,0.80648394,2582.7,2582.0,3.87289]
[1730864621517,0.80648394,2582.7,2582.5,3.87207]
[1730864621518,0.35998774,2582.6,2582.5,3.87207]
[1730864621881,0.57599217,2582.6,2582.5,3.87207]
[1730864622078,1.78571376,2582.6,2582.3,3.87241]
[1730864622281,0.80652188,2582.5,2582.1,3.87266]
[1730864622582,0.80652188,2582.4,2582.3,3.87239]
[1730864622776,0.8064328,2582.4,2582.0,3.87295]
[1730864622980,0.8064328,2582.4,2581.8,3.87314]
[1730864622981,0.8064328,2582.1,2581.8,3.87314]
[1730864623497,0.8064328,2582.0,2581.9,3.87311]
[1730864623692,0.8064328,2582.0,2581.8,3.87314]
[1730864624213,0.8064328,2582.1,2582.0,3.87296]
[1730864624381,4.3564328,2582.3,2582.0,3.87296]
[1730864624577,0.8064328,2582.2,2582.0,3.87296]
[1730864624890,4.3564328,2582.3,2582.0,3.87296]
[1730864625430,1.3564328,2582.3,2582.0,3.87296]
[1730864625597,0.8064328,2582.2,2582.0,3.87296]
[1730864625941,0.8064328,2582.4,2582.2,3.87265]
[1730864626147,0.8064328,2582.6,2582.2,3.87265]
[1730864626345,0.8064328,2582.6,2582.4,3.87224]
[1730864626507,0.8064328,2582.8,2582.6,3.87206]
[1730864626695,0.8064328,2582.8,2582.7,3.87191]
[1730864627034,0.80541854,2582.9,2582.8,3.87176]
[1730864627228,0.80541854,2583.0,2582.7,3.87191]
[1730864627432,0.80541854,2583.0,2582.9,3.87161]
[1730864627664,1.20972591,2583.1,2582.9,3.87149]
[1730864627665,0.80541854,2583.1,2582.9,3.87149]
[1730864627874,0.80541854,2583.1,2583.0,3.87146]
[1730864628024,0.80541854,2583.3,2583.1,3.87131]
[1730864628512,0.80541854,2583.5,2583.2,3.87106]
[1730864628702,0.80541854,2583.5,2583.0,3.87146]
[1730864628906,0.01,2584.0,2582.9,0.387149]
[1730864628907,1.60977969,2584.3,2583.8,0.7608]
[1730864629228,0.7856,2584.9,2584.0,7.68129732]
[1730864629555,0.7856,2584.9,2584.4,3.86936]
[1730864629769,0.57509981,2584.8,2584.4,3.86936]
[1730864629922,4.65424,2584.9,2584.3,7.68129732]
[1730864630123,3.86878,2584.8,2584.3,7.68129732]
[1730864630433,0.7856,2584.9,2584.3,7.68129732]
[1730864630748,0.7856,2584.9,2584.3,11.55080732]
[1730864630949,0.7856,2584.9,2584.3,7.68129732]
[1730864631310,0.7856,2584.9,2584.7,3.86891]
[1730864631549,0.7856,2584.9,2584.6,3.86906]
[1730864631969,0.7856,2584.9,2584.7,3.86889]
[1730864632462,3.7856,2585.2,2584.9,3.8686]
[1730864632643,0.7856,2585.2,2584.7,3.86889]
[1730864633985,0.55,2585.1,2584.8,3.86874]
[1730864634188,0.55,2585.1,2584.9,3.8686]
[1730864634350,0.55,2585.1,2584.6,3.86906]
[1730864634895,0.55,2585.1,2584.7,3.86888]
[1730864635044,0.55,2585.1,2584.8,3.86874]
[1730864635251,0.55,2585.1,2584.6,3.86906]
[1730864635593,0.55,2585.1,2584.7,3.86889]
[1730864635961,2.56018513,2585.1,2584.8,3.86876]
[1730864636489,2.01018513,2585.0,2584.6,3.86896]
[1730864636660,0.55,2584.9,2584.7,3.8688]
[1730864636878,0.55,2585.0,2584.8,3.86877]
[1730864637205,0.55,2585.0,2584.3,7.68129732]
[1730864637206,0.55,2585.0,2584.6,3.86903]
[1730864637351,0.55,2584.8,2584.4,3.86925]
[1730864637695,0.55,2584.8,2584.2,11.55092732]
[1730864637696,1.60798271,2584.7,2584.2,7.68129732]
[1730864637846,1.20600233,2584.5,2584.3,3.86951]
[1730864638046,0.55,2584.4,2584.3,3.86951]
[1730864638447,0.7856,2584.6,2584.5,3.86922]
[1730864638931,0.8038921,2584.6,2584.2,7.68129732]
[1730864639098,0.8038921,2584.7,2584.5,3.86912]
[1730864639309,1.3538921,2584.6,2584.5,3.86912]
[1730864639481,0.55,2584.6,2584.5,3.86912]
[1730864639791,1.75600233,2584.6,2584.4,3.86935]
[1730864639991,0.80390241,2584.5,2584.4,3.86935]
[1730864640149,1.35390241,2584.6,2584.4,3.86935]
[1730864640354,0.80390241,2584.6,2584.5,3.86922]
[1730864640648,1.60798271,2584.8,2584.5,3.86922]
[1730864640649,0.80390241,2584.8,2584.5,3.86922]
[1730864640905,0.80390241,2584.8,2584.7,7.68129732]
[1730864641063,0.80390241,2584.8,2584.7,11.55021732]
[1730864641415,0.80390241,2584.9,2584.7,7.68129732]
[1730864641602,0.80390241,2584.8,2584.7,11.55020732]
[1730864641767,0.80390241,2584.9,2584.7,11.55020732]
[1730864641950,0.80390241,2584.9,2584.8,3.86877]
[1730864642348,1.35357884,2584.9,2584.7,7.68129732]
[1730864642579,1.35369006,2584.8,2584.0,0.63425247]
[1730864642748,1.35369006,2584.8,2583.8,7.68129732]
[1730864642749,1.35369006,2584.4,2583.8,7.68129732]
[1730864642952,0.55,2584.2,2584.0,3.86987]
[1730864643201,1.35369006,2584.2,2583.8,10.81918732]
[1730864643353,1.35369006,2584.2,2584.0,3.86991]
[1730864643554,1.35369006,2584.2,2583.8,6.94899732]
[1730864643555,2.16089006,2584.2,2583.8,6.94899732]
[1730864643760,0.55,2584.0,2583.8,6.94899732]
[1730864644054,1.35369006,2584.0,2583.8,6.94899732]
[1730864644258,0.80369006,2584.0,2583.8,6.94899732]
[1730864644502,0.80369006,2584.1,2583.8,6.94899732]
[1730864644672,0.55,2584.1,2583.8,6.94899732]
[1730864644994,0.80369006,2584.0,2583.8,6.94899732]
[1730864645310,0.55,2583.9,2583.8,6.94899732]
[1730864645455,0.55,2583.7,2583.3,7.68129732]
[1730864645655,0.55,2583.5,2583.3,7.68129732]
[1730864645907,0.80431104,2583.4,2582.9,11.55287732]
[1730864646202,0.80431104,2583.4,2582.3,7.68129732]
[1730864646203,1.61165361,2583.1,2582.3,7.68129732]
[1730864646522,1.35445361,2582.7,2582.3,7.68129732]
[1730864646833,0.80445361,2582.7,2582.4,4.65456]
[1730864646994,0.80445361,2583.0,2582.6,3.87206]
[1730864647200,0.80445361,2583.0,2582.9,11.55290732]
[1730864647506,1.20600233,2583.2,2582.9,11.55290732]
[1730864647507,0.80445361,2583.1,2583.0,3.87146]
[1730864648014,1.60798271,2583.5,2583.1,4.65351]
[1730864648221,1.60798271,2583.9,2583.6,3.87056]
[1730864648394,1.60798271,2584.0,2583.6,3.87056]
[1730864648709,1.60798271,2583.9,2583.7,3.87027]
[1730864649036,1.60798271,2584.0,2583.6,7.741]
[1730864649216,1.60798271,2584.0,2583.8,3.87024]
[1730864649395,1.60798271,2584.0,2583.6,3.87044]
[1730864649594,1.60798271,2584.0,2583.7,3.8703]
[1730864649800,1.60798271,2583.9,2583.7,3.8703]
[1730864650015,1.60798271,2584.0,2583.7,3.8703]
[1730864650244,1.60798271,2584.0,2583.8,3.87012]
[1730864650450,2.8188898,2584.1,2583.8,3.87012]
[1730864650451,1.60798271,2584.1,2584.0,3.86996]
[1730864650657,2.0116898,2584.5,2583.9,12.33360732]
[1730864650941,2.0116898,2584.7,2584.4,11.55055732]
[1730864651142,2.0116898,2584.8,2584.7,3.86892]
[1730864651350,2.0116898,2585.1,2584.8,3.86877]
[1730864651658,2.0116898,2585.2,2584.7,3.86892]
[1730864651864,2.0116898,2585.2,2584.8,3.86876]
[1730864652019,2.0116898,2585.1,2584.8,3.86876]
[1730864652214,2.0116898,2585.1,2584.7,3.86892]
[1730864652866,2.0116898,2585.2,2584.8,3.86877]
[1730864653535,2.0116898,2585.2,2585.0,3.86839]
[1730864653737,2.0116898,2585.3,2584.8,3.86877]
[1730864654066,2.0116898,2585.3,2584.9,3.86849]
[1730864654228,2.0116898,2585.3,2585.0,3.86846]
[1730864654567,2.00994754,2585.3,2585.0,3.86846]
[1730864654717,0.55,2585.2,2584.6,11.55031732]
[1730864655066,2.55994754,2585.2,2584.8,3.86874]
[1730864655217,0.55,2585.2,2584.8,3.86874]
[1730864655831,0.55,2585.2,2584.6,7.68129732]
[1730864655832,2.55994754,2585.2,2584.7,3.86891]
[1730864656070,2.00994754,2585.1,2584.6,11.55030732]
[1730864656213,2.00994754,2585.1,2584.7,3.86887]
[1730864656415,2.00994754,2585.1,2584.8,3.86874]
[1730864657114,2.00994754,2585.3,2585.1,3.86832]
[1730864657318,0.55,2585.2,2584.8,3.86869]
[1730864657563,1.20551178,2585.1,2584.8,3.86869]
[1730864657761,1.20551178,2585.1,2585.0,3.86847]
[1730864657919,1.20551178,2585.1,2584.8,3.86869]
[1730864658119,0.80361651,2585.0,2584.8,3.86865]
[1730864658421,0.80361651,2585.1,2584.6,11.55024732]
[1730864658648,0.80361651,2585.0,2584.6,11.55024732]
[1730864658849,0.80361651,2584.9,2584.6,15.41920732]
[1730864659085,0.80361651,2584.9,2584.6,11.53841015]
[1730864659378,0.80361651,2584.8,2584.6,7.66946015]
[1730864659521,0.80361651,2584.8,2584.0,4.45952581]
[1730864659522,1.35361651,2584.7,2584.1,7.66946015]
[1730864659724,0.80361651,2584.6,2584.3,3.86942]
[1730864660155,0.80361651,2584.4,2584.2,3.86956]
[1730864660460,1.20551178,2584.6,2584.3,7.73893]
[1730864660461,0.80361651,2584.6,2584.3,7.73893]
[1730864660660,0.80361651,2584.6,2584.4,3.86931]
[1730864660837,0.80361651,2584.6,2584.3,3.86942]
[1730864660838,0.80361651,2584.6,2584.5,3.86922]
[1730864661032,1.20551178,2584.8,2584.6,3.86907]
[1730864661033,0.80361651,2584.7,2584.6,3.86907]
[1730864661224,0.80361651,2584.8,2584.6,7.66946015]
[1730864661479,0.80361651,2584.7,2584.6,7.66946015]
[1730864661619,0.55,2584.5,2584.1,7.66946015]
[1730864661978,0.80361651,2584.4,2584.1,7.66946015]
[1730864662119,0.55,2584.2,2583.7,3.87035]
[1730864662462,1.35361651,2584.2,2583.7,3.87035]
[1730864662767,0.80361651,2584.1,2583.7,3.87035]
[1730864663070,0.80361651,2584.1,2583.8,3.87024]
[1730864663220,0.80361651,2584.1,2583.9,3.87011]
[1730864663421,0.80361651,2584.1,2583.6,7.66946015]
[1730864663422,1.20551178,2584.3,2584.1,3.86981]
[1730864663643,0.80391083,2584.2,2584.1,3.86981]
[1730864663877,0.80391083,2584.3,2584.1,3.86981]
[1730864664022,0.80391083,2584.3,2584.0,3.86996]
[1730864664221,0.80391083,2584.2,2584.0,3.86996]
[1730864664618,0.80391083,2584.2,2583.9,3.86999]
[1730864664860,0.80391083,2584.2,2583.9,7.74001]
[1730864665070,0.80391083,2584.2,2584.0,3.86992]
[1730864665368,0.80391083,2584.2,2584.1,3.86981]
[1730864665574,0.80391083,2584.2,2584.1,7.66946015]
[1730864665803,0.80391083,2584.4,2584.2,3.86966]
[1730864666063,0.80391083,2584.4,2584.1,11.53927015]
[1730864666262,0.80391083,2584.2,2584.1,11.53927015]
[1730864666482,0.80391083,2584.3,2584.1,11.53927015]
[1730864666649,1.20551178,2584.3,2584.1,11.53927015]
[1730864666854,0.80436503,2584.2,2584.1,11.53927015]
[1730864667260,1.20551178,2584.3,2584.1,11.53927015]
[1730864667483,3.86976,2584.2,2583.6,7.66946015]
[1730864667770,0.80460628,2583.8,2583.6,7.66946015]
[1730864667971,0.80460628,2583.9,2583.6,7.66946015]
[1730864668127,0.80460628,2583.8,2583.7,3.87041]
[1730864668320,0.80460628,2583.8,2583.6,7.66946015]
[1730864668522,0.80492283,2583.7,2583.6,11.54002015]
[1730864669213,1.20690942,2583.7,2583.6,11.54002015]
[1730864669410,1.20690942,2583.8,2583.7,3.87041]
[1730864669620,2.41381885,2584.3,2583.8,3.87026]
[1730864669776,2.41381885,2584.9,2584.6,3.86893]
[1730864669970,3.19181885,2585.0,2584.6,3.86893]
[1730864670296,0.36025374,2584.9,2584.7,3.86887]
[1730864670510,2.41381885,2585.1,2584.7,3.86887]
[1730864670511,0.36025374,2584.8,2584.7,3.86887]
[1730864670678,2.41381885,2585.2,2584.6,3.86898]
[1730864670877,2.41381885,2585.2,2584.8,3.86862]
[1730864671487,2.41381885,2585.1,2584.8,3.86862]
[1730864671695,2.41381885,2585.1,2584.4,3.86927]
[1730864671696,0.55,2584.9,2584.4,3.86927]
[1730864672022,0.31918189,2585.1,2584.7,3.86891]
[1730864672327,2.41921171,2585.1,2584.7,3.86891]
[1730864672481,2.41921171,2585.1,2584.5,3.86907]
[1730864673015,2.41921171,2585.1,2584.7,3.8689]
[1730864673225,2.41921171,2585.1,2584.4,7.67081719]
[1730864673377,2.41921171,2584.9,2584.4,11.54017719]
[1730864673577,2.41921171,2584.9,2584.5,3.86916]
[1730864673774,2.82241367,2585.1,2584.5,3.86916]
[1730864673775,2.41921171,2584.8,2584.5,3.86916]
[1730864674088,2.41921171,2584.9,2584.5,7.73826]
[1730864674283,2.41921171,2584.9,2584.8,3.86877]
[1730864674492,2.41921171,2585.1,2584.8,3.86877]
[1730864674722,2.41921171,2585.0,2584.8,3.86877]
[1730864675074,2.41921171,2585.1,2584.9,3.86859]
[1730864676173,2.41921171,2585.1,2584.9,7.73711]
[1730864676670,2.42234931,2585.1,2584.9,3.86852]
[1730864676960,2.42234931,2585.2,2585.1,3.86832]
[1730864677316,2.42234931,2585.2,2584.9,3.86852]
[1730864677613,1.61452464,2585.1,2585.0,3.86847]
[1730864677814,2.01846983,2585.2,2585.1,3.86832]
[1730864678556,2.01846983,2585.3,2585.2,3.86817]
[1730864678763,2.42234931,2585.6,2585.1,3.86832]
[1730864679073,1.61421372,2585.3,2585.2,3.86817]
[1730864679252,1.21052139,2585.4,2585.3,3.86802]
[1730864679557,2.0176853,2585.6,2585.5,3.86772]
[1730864679852,2.42122236,2585.9,2585.5,3.86772]
[1730864679853,2.0176853,2585.7,2585.6,3.86757]
[1730864680436,1.6134539,2585.7,2585.6,3.86757]
[1730864680730,1.20958653,2585.9,2585.8,3.86727]
[1730864680925,1.20958653,2586.0,2585.9,3.86712]
[1730864681131,1.20942324,2586.1,2586.0,3.86697]
[1730864681639,1.20942324,2586.2,2586.1,3.86682]
[1730864682578,1.20858361,2586.2,2586.1,3.86682]
[1730864682781,1.20858361,2586.3,2586.2,3.86667]
[1730864683078,1.20858361,2586.5,2586.3,3.86652]
[1730864683277,1.6134539,2586.6,2586.5,3.86622]
[1730864683482,1.61041379,2586.6,2586.5,3.86622]
[1730864684187,1.61041379,2586.6,2586.4,3.86637]
[1730864684334,1.61041379,2586.5,2586.2,3.86654]
[1730864684533,1.56970009,2586.5,2586.2,3.86654]
[1730864684788,1.20708647,2586.4,2586.3,3.86652]
[1730864684939,1.20708647,2586.4,2586.2,3.86654]
[1730864685479,2.81750026,2586.4,2586.2,3.86654]
[1730864685693,1.20708647,2586.4,2586.2,3.86654]
[1730864685835,1.75708647,2586.3,2585.7,3.86729]
[1730864686036,1.20708647,2586.1,2585.7,3.86729]
[1730864686243,1.20708647,2586.0,2585.9,3.86712]
[1730864686738,1.20708647,2586.2,2586.0,3.86697]
[1730864686954,1.20708647,2586.2,2586.1,3.86682]
[1730864687287,1.20708647,2586.5,2586.4,3.86637]
[1730864687453,1.20708647,2586.7,2586.5,3.86622]
[1730864687641,1.20708647,2586.7,2586.6,3.86607]
[1730864687874,1.20708647,2586.8,2586.6,3.86607]
[1730864688082,1.20708647,2586.8,2586.5,10.61899505]
[1730864688083,1.20708647,2586.8,2586.5,3.8661]
[1730864688242,1.20708647,2586.8,2586.6,3.86602]
[1730864688602,1.20708647,2586.7,2586.5,3.8661]
[1730864688896,1.20708647,2586.7,2586.6,3.86607]
[1730864689539,1.20708647,2586.8,2586.7,3.86592]
[1730864689742,1.20708647,2586.9,2586.8,3.86578]
[1730864690642,1.20708647,2587.0,2586.9,3.86563]
[1730864690980,1.20708647,2587.2,2587.0,3.86548]
[1730864691495,1.20708647,2587.3,2587.0,3.86548]
[1730864691640,1.20708647,2587.3,2586.8,3.86565]
[1730864691844,1.20708647,2587.3,2587.1,3.86522]
[1730864692155,1.20708647,2587.5,2587.4,3.86488]
[1730864692341,1.20708647,2587.6,2587.4,3.86488]
[1730864692688,1.20708647,2587.7,2587.4,3.86488]
[1730864693092,1.20708647,2587.6,2587.4,3.86488]
[1730864693440,1.20708647,2587.7,2587.4,3.86488]
[1730864693852,1.20708647,2587.7,2587.6,3.86458]
[1730864694159,1.97828647,2587.8,2587.7,3.86443]
[1730864694503,0.7712,2587.8,2587.4,3.86485]
[1730864694800,0.7712,2587.8,2587.2,3.86509]
[1730864695000,0.7712,2587.8,2587.1,3.86532]
[1730864695001,1.97828647,2587.8,2587.1,3.86532]
[1730864695184,3.86461,2587.6,2587.1,3.86529]
[1730864695666,0.55,2587.6,2587.1,3.86529]
[1730864695867,0.55,2587.6,2586.8,3.8657]
[1730864696198,1.75708647,2587.6,2586.6,3.866]
[1730864696402,3.86533,2587.1,2586.6,3.866]
[1730864696761,0.7712,2586.9,2586.4,3.86626]
[1730864696961,4.63683,2586.9,2586.4,3.86626]
[1730864697363,4.63683,2586.9,2586.3,3.86649]
[1730864697559,0.55,2586.8,2586.4,3.86637]
[1730864697906,0.7712,2586.9,2586.5,3.8662]
[1730864698054,0.7712,2586.9,2586.4,3.86637]
[1730864698406,4.63684,2586.9,2586.4,3.86627]
[1730864698572,4.63684,2586.9,2586.3,3.8665]
[1730864698901,4.63684,2586.9,2585.8,4.66856]
[1730864698902,0.55,2586.8,2586.0,3.86687]
[1730864699058,0.55,2586.6,2586.0,3.86687]
[1730864699499,4.41595,2586.7,2586.1,3.86681]
[1730864699669,0.55,2586.7,2585.7,6.75277505]
[1730864699871,0.55,2586.8,2586.3,3.86642]
[1730864700103,1.97828647,2586.9,2586.5,3.86619]
[1730864700307,0.7712,2586.9,2586.5,3.86612]
[1730864700512,0.7712,2586.9,2586.4,3.86627]
[1730864700804,1.97828647,2586.9,2586.4,3.86627]
[1730864701109,5.84404647,2586.9,2586.2,3.8666]
[1730864701292,0.55,2586.8,2586.2,3.8666]
[1730864701817,0.55,2586.8,2585.8,4.68532]
[1730864701818,0.7712,2586.9,2586.5,3.86621]
[1730864702119,0.7712,2586.9,2586.6,3.86594]
[1730864702406,0.7712,2586.9,2585.8,0.8181]
[1730864702606,0.7712,2586.9,2586.5,3.86617]
[1730864702982,0.7712,2586.9,2586.5,3.86611]
[1730864703512,0.7537,2587.2,2586.5,0.386611]
[1730864703671,1.96078647,2587.5,2587.1,3.86533]
[1730864703869,1.96078647,2587.5,2586.9,3.86554]
[1730864703870,0.7537,2587.5,2586.9,3.86554]
[1730864704066,0.7537,2587.5,2586.6,0.07730967]
[1730864704317,0.7537,2587.5,2587.3,3.865]
[1730864704875,1.20708647,2587.7,2587.5,3.86471]
[1730864705216,1.96078647,2587.9,2587.5,7.72942]
[1730864705421,0.7537,2587.9,2587.7,3.86434]
[1730864705921,0.7537,2587.9,2587.3,3.8649]
[1730864706076,0.7537,2587.9,2587.3,3.86488]
[1730864706276,1.215458,2587.9,2587.3,3.86488]
[1730864706472,1.215458,2587.9,2587.1,3.86527]
[1730864706821,0.55,2587.6,2587.1,3.86527]
[1730864707677,4.41468,2587.6,2587.0,3.86547]
[1730864707905,3.86474,2587.5,2586.9,3.86551]
[1730864708110,7.72961,2587.5,2586.9,3.86551]
[1730864708424,7.72961,2587.5,2586.7,3.86586]
[1730864708425,0.7537,2587.4,2586.5,6.75277505]
[1730864708580,0.7537,2587.4,2586.9,3.86558]
[1730864708974,0.7537,2587.4,2586.9,3.86553]
[1730864709222,4.6186,2587.4,2586.9,3.86553]
[1730864709423,0.7537,2587.4,2586.9,7.73106]
[1730864709721,0.7537,2587.4,2586.9,3.86553]
[1730864710104,0.7537,2587.4,2587.1,3.8652]
[1730864710683,0.7537,2587.4,2586.9,3.86556]
[1730864711177,0.7537,2587.4,2586.7,3.86585]
[1730864711178,0.55,2587.3,2586.7,3.86585]
[1730864711380,3.86558,2587.0,2586.3,3.86639]
[1730864711631,7.73117,2587.0,2586.4,3.86626]
[1730864711778,1.20708647,2587.1,2586.1,10.61953505]
[1730864711779,3.86577,2586.9,2586.1,10.61953505]
[1730864712119,0.7537,2586.7,2586.2,3.86659]
[1730864712633,3.86669,2586.2,2585.5,4.68574]
[1730864712830,3.86723,2585.9,2585.1,0.8181]
[1730864713012,3.86723,2585.9,2584.1,3.86979]
[1730864713013,3.86787,2585.4,2584.7,3.86884]
[1730864713195,0.55,2585.3,2584.7,3.86891]
[1730864713406,0.55,2585.3,2584.8,3.86863]
[1730864713625,1.20708647,2585.6,2585.2,3.86816]
[1730864713833,1.20708647,2585.9,2585.6,3.86757]
[1730864714120,0.8229,2586.1,2585.6,3.86757]
[1730864714328,0.8229,2586.1,2585.6,0.773539]
[1730864714527,1.20708647,2586.3,2585.8,3.86713]
[1730864714898,2.02998647,2586.5,2586.3,3.86649]
[1730864715103,1.20708647,2586.7,2586.4,3.86637]
[1730864715314,1.20708647,2586.7,2586.3,3.86649]
[1730864715315,1.20708647,2586.7,2586.5,3.86618]
[1730864715515,1.20708647,2586.7,2586.6,3.86596]
[1730864715701,1.20708647,2586.8,2586.5,3.86618]
[1730864715902,1.20708647,2586.7,2586.5,3.86609]
[1730864716117,1.20708647,2586.8,2586.6,3.86607]
[1730864716391,1.61041379,2586.9,2586.5,3.86609]
[1730864716912,1.61041379,2586.8,2586.5,3.86609]
[1730864717085,1.61041379,2586.8,2586.5,4.639348]
[1730864717291,1.61041379,2586.8,2586.5,3.86609]
[1730864717485,1.61041379,2586.8,2586.6,3.86607]
[1730864717729,1.61041379,2586.8,2586.5,3.86609]
[1730864717930,1.61041379,2586.8,2586.6,3.86607]
[1730864718088,1.61041379,2586.8,2586.3,3.86646]
[1730864718291,5.47619379,2586.8,2586.1,3.86677]
[1730864718537,3.86639,2586.4,2585.7,3.86728]
[1730864718701,3.86639,2586.4,2585.5,4.66308]
[1730864718702,4.68968,2586.2,2585.5,3.86771]
[1730864718890,1.61041379,2586.1,2585.7,3.86728]
[1730864719290,1.61041379,2586.1,2585.7,7.73456]
[1730864719534,2.83655622,2586.2,2585.8,3.86725]
[1730864719535,1.61041379,2586.0,2585.8,3.86725]
[1730864719697,1.61041379,2586.0,2585.7,3.86728]
[1730864719895,1.61041379,2586.1,2585.7,3.86728]
[1730864720121,1.61041379,2586.0,2585.6,3.86754]
[1730864720439,1.61041379,2586.0,2585.6,3.86756]
[1730864720590,1.61041379,2585.9,2585.7,3.8674]
[1730864720943,1.61041379,2585.9,2585.8,3.86727]
[1730864721097,1.61041379,2586.0,2585.8,3.86727]
[1730864721499,1.61041379,2585.9,2585.8,3.86727]
[1730864721709,1.61041379,2586.0,2585.8,3.86727]
[1730864722143,1.61041379,2586.1,2585.8,3.86727]
[1730864722356,1.61041379,2586.1,2585.5,3.86763]
[1730864722357,1.61041379,2586.0,2585.5,3.86763]
[1730864722534,1.61041379,2585.9,2585.8,3.86727]
[1730864722866,1.61041379,2585.9,2585.7,3.86742]
[1730864723075,1.61365104,2585.8,2585.7,3.86742]
[1730864723658,2.01776273,2585.8,2585.7,3.86742]
[1730864723833,1.6142101,2585.8,2585.7,3.86742]
[1730864724147,1.61418215,2585.8,2585.7,3.86742]
[1730864724346,1.61418215,2585.8,2585.6,3.86757]
[1730864724564,1.61445683,2585.7,2585.4,3.8678]
[1730864724721,1.61445683,2585.7,2585.6,3.86757]
[1730864724915,1.61440115,2585.9,2585.8,3.86727]
[1730864725161,2.01776273,2586.0,2585.9,3.86712]
[1730864725458,2.01776273,2586.0,2585.7,3.8673]
[1730864725696,3.86638,2586.4,2585.7,3.8673]
[1730864725697,2.01776273,2585.9,2585.7,3.8673]
[1730864725858,1.61451558,2585.8,2585.7,3.8673]
[1730864726345,2.01776273,2585.8,2585.4,4.66317]
[1730864726554,1.61462528,2585.7,2585.4,4.66314]
[1730864726744,1.61462528,2585.7,2585.6,3.86757]
[1730864726949,2.01776273,2585.7,2585.2,3.8681]
[1730864727145,1.61457298,2585.5,2585.0,3.86836]
[1730864727357,5.88534273,2585.6,2585.0,3.86836]
[1730864727358,1.61457298,2585.3,2585.0,3.86836]
[1730864727611,1.61457298,2585.1,2585.0,3.86836]
[1730864727764,2.01776273,2585.1,2585.0,3.86836]
[1730864727948,1.61449595,2585.1,2585.0,7.73672]
[1730864728460,1.61449595,2585.1,2585.0,4.642032]
[1730864728664,1.61449595,2585.6,2585.3,3.86802]
[1730864728897,1.61449595,2585.8,2585.7,3.86742]
[1730864729102,1.61449595,2585.9,2585.8,3.86727]
[1730864729248,1.61449595,2586.0,2585.8,4.65507]
[1730864729448,2.42175332,2586.4,2585.8,4.65507]
[1730864729449,1.61331593,2586.3,2585.9,4.719369]
[1730864729655,2.01812777,2586.3,2586.2,3.86667]
[1730864729850,2.01812777,2586.3,2586.0,3.86683]
[1730864729851,2.01812777,2586.3,2586.1,3.86682]
[1730864730179,2.01812777,2586.2,2586.1,3.8668]
[1730864730386,2.01812777,2586.2,2585.4,0.7878]
[1730864730553,1.61342032,2585.8,2585.7,3.8674]
[1730864730913,2.01812777,2585.8,2585.3,3.86799]
[1730864731048,1.61355611,2585.5,2585.4,3.86781]
[1730864731245,2.01694514,2585.5,2585.3,3.86799]
[1730864731445,1.61372442,2585.4,2585.3,3.86799]
[1730864731708,0.8274,2584.3,2583.1,3.87123]
[1730864731950,1.61467149,2583.6,2583.4,0.04433431]
[1730864732114,2.01833936,2583.6,2583.1,3.87129]
[1730864732256,1.61480139,2583.4,2582.4,0.7878]
[1730864732462,1.61480139,2583.2,2582.6,3.87203]
[1730864732661,1.61480139,2583.3,2582.6,3.87203]
[1730864732865,1.61480139,2583.3,2582.8,3.87162]
[1730864733059,1.61480139,2583.3,2583.2,3.87116]
[1730864733367,1.61480139,2583.7,2583.3,3.87101]
[1730864733682,1.61480139,2583.8,2583.3,4.645212]
[1730864733883,1.61480139,2583.8,2582.9,3.87161]
[1730864733884,1.61480139,2583.8,2583.4,3.87086]
[1730864734058,1.61480139,2583.8,2583.5,3.87066]
[1730864734259,2.44220139,2583.9,2583.1,0.7878]
[1730864734582,2.44220139,2584.2,2583.8,3.87026]
[1730864735274,2.44220139,2584.2,2583.6,3.87056]
[1730864735275,2.44220139,2584.2,2583.9,3.87008]
[1730864735472,0.8274,2584.2,2584.0,3.86996]
[1730864735671,0.55,2584.5,2584.0,3.86996]
[1730864736358,4.41923,2584.5,2583.8,3.87026]
[1730864736606,5.30723263,2584.5,2583.8,3.87026]
[1730864736982,0.8274,2584.1,2583.4,3.87079]
[1730864737327,0.55,2584.0,2583.4,3.87079]
[1730864737615,2.44220139,2584.4,2583.9,3.87011]
[1730864737913,0.8274,2584.4,2583.9,3.87011]
[1730864738085,0.8274,2584.4,2584.0,3.86995]
[1730864738285,0.8274,2584.4,2583.9,3.87011]
[1730864738673,0.8274,2584.4,2584.0,3.86996]
[1730864739182,2.375225,2584.4,2584.1,3.86981]
[1730864739415,2.375225,2584.4,2583.9,3.87011]
[1730864739572,2.375225,2584.4,2583.8,3.87024]
[1730864739776,2.375225,2584.4,2583.9,3.8701]
[1730864741076,0.8274,2584.4,2584.1,3.86971]
[1730864741279,0.8274,2584.4,2583.9,3.87]
[1730864741704,0.8274,2584.4,2584.0,3.86987]
[1730864742122,4.69682,2584.4,2583.7,7.74067]
[1730864742334,4.69682,2584.4,2583.7,3.87032]
[1730864742621,0.8274,2584.4,2584.0,3.8699]
[1730864742835,0.55,2584.3,2583.5,3.87057]
[1730864743125,0.55,2584.3,2583.7,3.87029]
[1730864743295,1.074686,2584.3,2583.7,3.87029]
[1730864743878,4.944216,2584.3,2583.7,3.87029]
[1730864744083,1.074686,2584.3,2583.5,3.87066]
[1730864744319,0.7513,2583.9,2583.1,3.87124]
[1730864744572,0.55,2583.5,2583.0,3.87143]
[1730864744873,0.7513,2583.5,2582.8,3.87169]